Cogmind - Beta 14 @@@ ROGUE MODE // 2025.03.09 @ 00:49:50 Player: Rudrot Result: Destroyed by S-10 Pest with Light Assault Rifle Performance ------------- Evolutions (0) 0 Regions Visited (2) 400 Robots Destroyed (23) 115 Value Destroyed (559) 559 Prototype IDs (0) 0 Alien Tech Used (0) 0 Bonus (0) 0 TOTAL SCORE: 1074 Bonus ------- None Cogmind --------- Core Integrity 0/250 Matter 278/300 Energy 81/100 System Corruption 0% Temperature Cool (0) Movement Rolling (110) Location -10/Subcaves Parts ------- > --- POWER (1) -------- (None) > --- PROPULSION (2) --- Subdweller Monowheel > --- UTILITY (2) ------ Small Storage Unit Signal Interpreter > --- WEAPON (2) ------- Subdweller Laser > --- INVENTORY (8) ---- Medium Battery (150) Signal Interpreter Transport Network Coupler Weapon Shielding Peak State ------------ > --- POWER ------------ Light Nuclear Core > --- PROPULSION ------- Wheel Wheel > --- UTILITY ---------- Small Storage Unit Signal Interpreter > --- WEAPON ----------- Medium Laser Grenade Launcher > --- INVENTORY -------- Ion Engine Wheel Signal Interpreter Transport Network Coupler Small Laser [Rating: 9] Favorites ----------- Power Light Ion Engine Engine Light Ion Engine Power Core Light Nuclear Core Propulsion Wheel Wheel Wheel Utility Small Storage Unit Storage Small Storage Unit Processor Signal Interpreter Weapon Medium Laser Energy Gun Medium Laser Launcher Grenade Launcher Build | -11 -10 -10 ------- Run | Yrd Mat Sub Slots Evolved . | . . . Power . | . . . Propulsion . | . . . Utility . | . . . Weapon . | . . . Parts Attached 29 | 6 12 11 Power 4 | 1 2 1 Engine 3 | 1 1 1 Core 1 | . 1 . Reactor . | . . . Propulsion 7 | 2 2 3 Treads . | . . . Leg . | . . . Wheel 7 | 2 2 3 Hover . | . . . Flight . | . . . Utility 2 | 1 1 . Device . | . . . Storage 1 | 1 . . Processor 1 | . 1 . Hackware . | . . . Protection . | . . . Artifact . | . . . Weapon 16 | 2 7 7 Energy Gun 10 | 2 4 4 Energy Cannon . | . . . Ballistic Gun . | . . . Ballistic Cannon . | . . . Launcher 6 | . 3 3 Special Weapon . | . . . Impact Weapon . | . . . Slashing Weapon . | . . . Piercing Weapon . | . . . Special Melee Weapon . | . . . Unidentified Prototypes . | . . . Parts Lost 9 | . 1 8 Power 2 | . . 2 Propulsion 4 | . 1 3 Utility . | . . . Weapon 3 | . . 3 Highest Loss Streak 3 | . 1 3 To Critical Strikes . | . . . Average Slot Usage (%) 94 | . 96 90 Engine 5 | . 2 11 Core 8 | . 11 2 Wheel 25 | . 25 24 Storage 14 | . 14 14 Processor 13 | . 13 14 Energy Gun 24 | . 26 21 Launcher 1 | . 1 1 Peak Build Rating 9 | 6 9 9 Average Rating 6 | 5 8 6 On Entrance 5 | . 6 9 Naked Turns . | . . . Heaviest Build 16 | 11 15 16 Greatest Support 20 | 20 20 20 Greatest Overweight (x) 1 | 1 1 1 Average Overweight (x) . | . . . Largest Inventory Capacity 8 | 8 8 8 Average Capacity 7 | 7 8 8 Most Carried 8 | . 8 7 Average Carried 2 | . 6 5 Final Capacity 8 | 8 8 8 Final Carried 6 | . 6 4 Class Distribution -------------------- 100% | Mutant Dominant Class ---------------- Mutant | -10/Materials Mutant | -10/Subcaves Resources | -11 -10 -10 ----------- Run | Yrd Mat Sub Matter Collected 628 | 187 289 152 Remotely . | . . . Salvage Created 722 | . 445 277 Parts 51 | . 33 18 Haulers Intercepted 2 | . 2 . Recyclers Shooed . | . . . Parts Field Recycled . | . . . Retrieved Matter . | . . . Parts Self-Destructed 10 | . . 10 Prevented . | . . . Kills | -11 -10 -10 ------- Run | Yrd Mat Sub Combat Hostiles Destroyed 15 | . 8 7 Guns 12 | . 6 6 AOE 2 | . 1 1 Classes Destroyed 8 | . 6 2 Builder 2 | . 2 . Hauler 2 | . 2 . Operator 1 | . 1 . Watcher 3 | . 3 . Swarmer 4 | . 3 1 Grunt 5 | . 5 . Sentry 1 | . . 1 Subdweller 5 | . . 5 Best Kill Streak 4 | . 4 2 Combat Bots Only 3 | . 3 2 Max Kills in Single Turn 3 | . 3 1 Gunslinging . | . . . Exploded 1 | . 1 1 Melee . | . . . Uniques/NPCs Destroyed . | . . . Combat | -11 -10 -10 -------- Run | Yrd Mat Sub Hostile Shots Fired 93 | . 39 54 Missed 21 | . 7 14 Damage Taken 944 | . 337 607 Core 251 | . 94 157 Absorbed by Shields . | . . . Core Remaining (%) 100 | 100 . . Volleys Fired 138 | 3 68 67 Largest 2 | 2 2 2 Hottest 110 | 90 90 110 Shots Fired 265 | 6 131 128 Gun 245 | 6 120 119 Cannon . | . . . Launcher 20 | . 11 9 Special . | . . . Kinetic . | . . . Thermal 245 | 6 120 119 Explosive 20 | . 11 9 Electromagnetic . | . . . Robot Hit Streak 13 | . 6 13 Robot Miss Streak 7 | . 7 2 Penetration Max . | . . . Secondary Targets 3 | . 2 1 Max Gunslinging Chain 1 | . 1 1 Shots Hit Robots 101 | . 58 43 Core Hits 44 | . 25 19 Critical Kills . | . . . Critical Parts Destroyed . | . . . Critical Strikes 5 | . 4 1 Burn 5 | . 4 1 Melee Attacks . | . . . Impact . | . . . Slashing . | . . . Piercing . | . . . Sneak Attacks . | . . . Combat Hostiles . | . . . Follow-up Attacks . | . . . Damage Inflicted 1685 | . 959 726 Guns 1201 | . 693 508 Cannons . | . . . Explosions 484 | . 266 218 Melee . | . . . Ramming . | . . . Kinetic . | . . . Thermal 1201 | . 693 508 Explosive 484 | . 266 218 Electromagnetic . | . . . Impact . | . . . Slashing . | . . . Piercing . | . . . Highest Corruption . | . . . Average Corruption . | . . . Corruption Purged . | . . . Corruption Blocked . | . . . Overload Shots . | . . . Overflow Damage 1 | . . 1 Projectiles . | . . . Explosions 1 | . . 1 Melee . | . . . Knockbacks . | . . . Impact . | . . . Kinetic . | . . . Secondary . | . . . Self-Inflicted Damage 13 | . 13 . Shots 1 | . 1 . Rammed . | . . . Targets Rammed . | . . . Kicked . | . . . Crushed . | . . . Highest Temperature 270 | 70 270 31 Average Temperature 79 | 33 84 13 Received Heat Transfer 282 | . 144 138 Siege Activations . | . . . Robots Corrupted . | . . . Combat Hostiles . | . . . Parts Fried . | . . . Impact Corruptions . | . . . Robots Melted 1 | . 1 . Combat Hostiles 1 | . 1 . Parts Melted 4 | . 4 . Heat Transferred 3419 | . 2142 1277 Parts Sabotaged . | . . . Parts Stolen . | . . . Parts Stripped . | . . . Power Chain Reactions . | . . . Alert | -11 -10 -10 ------- Run | Yrd Mat Sub Peak Influence 231 | . 231 . Initial . | . . . Average 21 | . 72 . Maximum Alert Level 1 | . 1 . Low Security (%) 98 | 100 95 . Level 1 1 | . 4 . Level 2 . | . . . Level 3 . | . . . Level 4 . | . . . Level 5 . | . . . High Security . | . . . Max Security . | . . . Squads Dispatched 1 | . 1 . Investigation . | . . . Extermination . | . . . Reinforcement 1 | . 1 . Assault . | . . . Garrison . | . . . Intercept . | . . . Searches Triggered . | . . . Construction Impeded . | . . . Haulers Reinforced . | . . . Active Scanning Responses . | . . . Cargo Convoy Interrupts . | . . . Stealth | -11 -10 -10 --------- Run | Yrd Mat Sub Distress Signals 1 | . 1 . Communications Jammed . | . . . Distress Signals . | . . . Times Spotted 31 | . 20 11 Peak Tracking Total 3 | . 3 3 Tactical Retreats 1 | . . 1 Traps | -11 -10 -10 ------- Run | Yrd Mat Sub Traps Triggered . | . . . Indirectly . | . . . Trap Hack Attempts . | . . . Triggered . | . . . Disarmed . | . . . Reprogrammed 1 | . 1 . Reused . | . . . Traps Extracted . | . . . Installed . | . . . Triggered . | . . . Machines | -11 -10 -10 ---------- Run | Yrd Mat Sub Machines Disabled . | . . . Max in Single Turn . | . . . Machines Repaired . | . . . Machines Dismantled . | . . . Machines Sabotaged . | . . . Overloaded Fab Kills . | . . . Hacking | -11 -10 -10 --------- Run | Yrd Mat Sub Machines Accessed 6 | . 6 . Terminals 6 | . 6 . Fabricators . | . . . Repair Stations . | . . . Recycling Units . | . . . Scanalyzers . | . . . Garrison Access . | . . . Total Hacks 15 | . 15 . Successful 8 | . 8 . Failed 7 | . 7 . Catastrophic . | . . . Database Lockouts . | . . . Manual . | . . . Terminals 15 | . 15 . Fabricators . | . . . Repair Stations . | . . . Recycling Units . | . . . Scanalyzers . | . . . Garrison Access . | . . . Terminal Hacks 8 | . 8 . Level Access Points 1 | . 1 . Emergency Access Points 1 | . 1 . Locate Traps 1 | . 1 . Reprogram Traps 1 | . 1 . Dispatch Records 1 | . 1 . Transport Status 1 | . 1 . Registered Prototypes 1 | . 1 . Zone Layout 1 | . 1 . Fabricator Hacks . | . . . Repair Station Hacks . | . . . Recycling Unit Hacks . | . . . Scanalyzer . | . . . Garrison Access Hacks . | . . . Unauthorized Hacks . | . . . Terminals . | . . . Fabricators . | . . . Repair Stations . | . . . Recycling Units . | . . . Scanalyzers . | . . . Garrison Access . | . . . Data Cores Recovered . | . . . Used . | . . . Hacking Detections 5 | . 5 . Full Trace Events 1 | . 1 . Feedback Events . | . . . Feedback Blocked . | . . . Robot Schematics Acquired . | . . . Robots Built . | . . . Authchips . | . . . Time . | . . . Total Robot Build Rating . | . . . Part Schematics Acquired . | . . . Parts Built . | . . . Authchips . | . . . Time . | . . . Total Part Build Rating . | . . . Parts Repaired . | . . . Time . | . . . Parts Recycled . | . . . Recycled Matter . | . . . Retrieved Matter . | . . . Retrieved Components . | . . . Parts Scanalyzed . | . . . Part Schematics Acquired . | . . . Parts Damaged . | . . . Bothacking | -11 -10 -10 ------------ Run | Yrd Mat Sub Used RIF Installer . | . . . Robots Hacked . | . . . Non-combat . | . . . Combat . | . . . Robot Hacks Applied . | . . . Relay Couplers Released . | . . . Fabnet Peak Effective % . | . . . Robots Rewired . | . . . Allies Hacked . | . . . Hacks Repelled . | . . . Allies | -11 -10 -10 -------- Run | Yrd Mat Sub Total Allies . | . . . Largest Group . | . . . Highest-Rated Group . | . . . Highest-Rated Ally . | . . . Total Orders . | . . . Ally Attacks . | . . . Total Damage . | . . . Kills . | . . . Allies Corrupted . | . . . Allies Melted . | . . . Intel | -11 -10 -10 ------- Run | Yrd Mat Sub Robot Analysis Total . | . . . Derelict Logs Recovered 1 | . . 1 Drone Launches . | . . . Drone Recoveries . | . . . Exploration | -11 -10 -10 ------------- Run | Yrd Mat Sub Turns Passed 6225 | 3849 1601 775 Spaces Moved 2956 | 782 1521 653 Core 5 | 5 . . Treads . | . . . Legs . | . . . Wheels 2951 | 777 1521 653 Hover . | . . . Flight . | . . . Fastest Speed 50 | 50 80 80 Average Speed 82 | 80 82 82 Slowest Speed 110 | 100 95 110 Overloaded Moves . | . . . Propulsion Burnouts . | . . . Robots Hopped . | . . . Cave-ins Triggered . | . . . Exploration Rate (%) 79 | 95 100 42 Regions Visited 2 Branch Regions 1 Pre-discovered Areas . | . . . Known Exits Taken 1 | . 1 . Unknown Exits Taken 1 | 1 . . Scrap Searched 6 | . . 6 Spaces Dug 18 | . 14 4 Terrain Destroyed 114 | . 76 38 Melee . | . . . Projectile . | . . . AOE 114 | . 76 38 Terrain Rammed . | . . . Walls Destroyed . | . . . Machines Disabled . | . . . Actions | -11 -10 -10 --------- Run | Yrd Mat Sub Total 6479 | 3995 1729 755 Wait 3345 | 3205 118 22 Move 2954 | 781 1520 653 Hop . | . . . Pick Up 8 | . 7 1 Fast Attach 9 | 6 1 2 Attach 5 | . 2 3 Detach 1 | . 1 . Swap 15 | . 9 6 Drop 4 | . 3 1 Fire 138 | 3 68 67 Melee . | . . . Ram . | . . . Kick . | . . . Crush . | . . . Escape Stasis . | . . . Rewire . | . . . Trap . | . . . Miscellaneous . | . . . Route ------- -11/Scrapyard -10/Materials (discovered 6 exits: *Mat x3 / *Min x2 / *Sub) -10/Subcaves History --------- Turn | Location | Event 14 | -11/Scrapyard | Discovered new exit (range 16) 3850 | -11/Scrapyard | Entered Materials 3851 | -10/Materials | Build established: Mutant 3880 | -10/Materials | Identified exit to Materials 4066 | -10/Materials | Discovered new exit (range 16) 5001 | -10/Materials | Discovered new exit (range 4) 5220 | -10/Materials | Discovered new exit (range 6) 5241 | -10/Materials | Identified exit to Subcaves 5356 | -10/Materials | Identified exit to Mines 5451 | -10/Materials | Entered Subcaves 5455 | -10/Subcaves | Learned Materials stockpile data 5571 | -10/Subcaves | Core integrity fell below 50% 6106 | -10/Subcaves | Lost 3 parts (2n1w) 6213 | -10/Subcaves | Core integrity fell below 20% 6226 | -10/Subcaves | Destroyed by S-10 Pest with Light Assault Rifle Last Messages --------------- 06025_ FY-1EQ(R): "LEAVESUB!" 06025_ Subatomizers dissect the Sub. Laser. 06039_ Acquired Sub. Laser. 06059_ Wheel destroyed. 06059_ RF-KM4(R) suffers critical hit (Burn). 06059_ Destroyed Sub. Power Source. 06059_ RF-3X5(R) destroyed. 06069_ Grenade Launcher destroyed. 06075_ Wheel destroyed. 06077_ Destroyed Scrap Shield. 06080_ RF-KM4(R) destroyed. 06092_ Acquired 1 matter. 06094_ The unstable cave ceiling collapses. 06094_ Acquired 9 matter. 06174_ Med. Laser destroyed. 06207_ Ion Engine destroyed. 06214_ Acquired Sub. Monowheel. 06217_ Wheel destroyed. 06218_ Acquired 28 matter. 06223_ S-10 Pest destroyed. Map ----- +----------------------------------------------------+ | ?????????????????????????????????????????????????? | | ?????????????????????????????????????????????????? | | ?????????????????????????????????????????????????? | | ?????????????????????????????????????????????????? | | ?????????????????????????????????????????????????? | | ?????????????????????????????????????????????????? | | ?????????????????????????????????????????????????? | | ?????????????????????????????????????????????????? | | ?????????????????????????????????????????????????? | | ?????????????????????????????????????????????????? | | ????????????????????????????????????######???????? | | ????????????????????????##??????????# ##??????? | | ?????????????????????? ##"######????# #??###?# | | ??????????????????????""""" #????## #### ### | | ??????????????????????""""" ##???## ## | | ?????????????????????? ## # #???# ## | | ??????###????##???????????## ##???# ## | | ?????## #?### ??????###????# #???## | | ?????# #?#""??????## ##???## #????# | | ????## ###"#??????# #???## ##????## | | ???## ### "#??????# #???# ##????## | | ???# ### ##??##### ##?## #???## | | ???# #?## ### ### ##???# | | ???# ### ## ##???# ## | | ??## ## # # [ ####### ### ## | | ??# # ## ###@*!!### ## #?## ## | | ??## & # #?#""%s## * ###??# ### | | ???# & ! ### ""=s % ###??## ### | | ???# ## ## ""& ##### #??# | | ???# ! # ##### R #??? | | ???## # ###??# ###??? | | ????## ####????# ## # ### #?###? | | ?????#####???????# ####### ########?## ### ## | | ????????????????## #????####???????### # | | ???????????????## #???##?????????## | | ???????????????# ### ##????????# | | ??????????????## ### #????????### | | ?????????????## #### #??????????# | | ????????????## ### ##?????????# ### | | ???????????## ## ##?????????# ####?# | | ???????????# ## % #??????????# #?????# | | ???????????# % ## #??????????###?????# | | ???????????## ####% #?????????????????# "# | | ????????????## %#??# % ##????????????????# #" | | ?????????????# ??## #####?????????????????##### | | ????????????? ???###?????????????????????????# | | ????????????? ###??????????????????????????????# | | ????????????# ???????????????????????????????? | | ????????????# ????????????????????????????????# | | ????????????# ???????????????????????????????? | +----------------------------------------------------+ Best States ------------- Heat Dissipation 25 Energy Generation 14 Energy Capacity 250 Matter Stores 300 Matter Capacity 300 Sight Range 16 Terrain Scan Density 10 Evasion (%) 44 Item Schematics ----------------- None Robot Schematics ------------------ None Fabricated ------------ Nothing Alien Tech Used ----------------- None Achievements -------------- None Challenges ------------ None Game ------ Seed FieldMasterDisintegrator Manual? 0 Play Time 00:47:50 Cumulative 16.1 hours Start 2025.03.08 @ 22:15:35 End 2025.03.09 @ 00:49:50 Sessions 1 Manual Loads 0 Difficulty Rogue Special Mode None Game No. 11 Rogue 11 Adventurer 0 Explorer 0 Win Type - Total 0 Types 0/0/0/0/0/0/0/0/0 Lore% 5 Gallery% 10 Achievement% 12 Wizard Run 0 Options --------- Layout 1 ASCII 0 Keyboard 1 Movement Numpad Keybinds 0 Fullscreen 2 Font 24/Cog Map View 50x35 Zoom Use 0% Tactical HUD 1 Map Filters NONE Filters NONE Steam 1 RUN: 2cbfe0ad-c51c-44c7-b3b7-18c1b0ae1ca0